Workbook

Sheet 01.04.2016
C1: Приложение №12
C2: к постановлению ЗАТО г.Радужный Владимирской области
C3: от 25.04.2016г. № 651
B5: Сведения о фактической численности муниципальных
B6: служащих, работников казенных и бюджетных учреждений и расходы
B7: на их денежное содержание за 1 квартал 2016 года
E8: (тыс.рублей)
A9: №п/п | B9: Раздел (подраз-дел) БК | C9: Наименование разделов (подразделов) расходов | D9: Фактическая численность на 01.01. 2016г. | E9: Годовой фонд оплаты труда с начислениями | F9: Исполнено за отчетный период
A10: 1 | B10: 2 | C10: 3 | D10: 4 | E10: 5 | F10: 6
A11: 1 | B11: 0100 | C11: Общегосударственные вопросы, всего, в том числе | D11: =D12+D13+D14+D15+D16 -> 58 | E11: =E12+E13+E14+E15+E16 -> 23004.16 | F11: =F12+F13+F14+F15+F16 -> 4272.09
A12: 1.1 | B12: 0102 | C12: Функционирование высшего должностного лица субъекта Российской Федерации и муниципального образования | D12: 1
A13: 1.2 | B13: 0103 | C13: Функционирование представительных органов местного самоуправления | D13: 3 | E13: =970.78+293.17 -> 1263.95 | F13: =192.82+44.41 -> 237.23
A14: 1.3 | B14: 0104 | C14: Функционирование местных администраций | D14: 19 | E14: =7050.71+2058.42 -> 9109.13 | F14: =1315.53+323.69 -> 1639.22
A15: 1.4 | B15: 0106 | C15: Обеспечение деятельности финансовых органов | D15: 10 | E15: =3226.8+953.7 -> 4180.5 | F15: =615.67+156.78 -> 772.45
A16: 1.5 | B16: 0113 | C16: Другие общегосударственные вопросы | D16: 25 | E16: =6491.47+1959.11 -> 8450.58 | F16: =1308.75+314.44 -> 1623.19
A17: 2 | B17: 0300 | C17: Национальная безопасность и правоохранительная деятельность, всего, в том числе | D17: 5 | E17: =E18 -> 1839.52 | F17: =F18 -> 338.78
A18: 2.1 | B18: 0309 | C18: Защита населения и территории от последствий чрезвычайных ситуаций природного и техногенного характера,гражданская оборона | D18: 5 | E18: =1412.84+426.68 -> 1839.52 | F18: =256.6+82.18 -> 338.78
A19: 3. | B19: 0400 | C19: Национальная экономика | D19: 48 | E19: =10157.02+3067.42 -> 13224.44 | F19: =1950.12+518.67 -> 2468.79
A20: 4 | B20: 0500 | C20: Жилищно-коммунальное хозяйство | D20: 174 | E20: =30331.03+9159.97 -> 39491 | F20: =5737.2+1388.87 -> 7126.07
A21: 5 | B21: 0700 | C21: Образование,всего,в том числе | D21: =D22+D23+D25 -> 647 | E21: =E22+E23+E25 -> 169922.21 | F21: =F22+F23+F25 -> 32487.11
A22: 5.1 | B22: 0701 | C22: Дошкольное образование | D22: 259 | E22: =53974.6+16306.8 -> 70281.4 | F22: =9762.8+2560.42 -> 12323.22
A23: 5.2 | B23: 0702 | C23: Общее образование, всего, в том числе | D23: 362 | E23: =70679.34+21089.1 -> 91768.44 | F23: =14088.5+4621.38 -> 18709.88
A24: 5.2.1 | C24: Общеобразовательные учреждения | D24: 215 | E24: =47601.6+14375.7 -> 61977.3 | F24: =9848.1+3455.8 -> 13303.9
A25: 5.3. | B25: 0709 | C25: Другие вопросы в области образования, всего, в том числе | D25: 26 | E25: =6046.37+1826 -> 7872.37 | F25: =1134.52+319.49 -> 1454.01
A26: 5.3.1 | C26: Централизованные бухгалтерии | D26: 15 | E26: =3206.2+942.2 -> 4148.4 | F26: =677.9+204.7 -> 882.6
A27: 6. | B27: 0800 | C27: Культура, кинематография | D27: =D28+D29 -> 99 | E27: =E28+E29 -> 21573.89 | F27: =F28+F29 -> 3225.69
A28: 6.1 | B28: 0801 | C28: Культура | D28: 82 | E28: =12463.88+3764.09 -> 16227.97 | F28: =1848.65+478.83 -> 2327.48
A29: 6.2 | B29: 0804 | C29: Другие вопросы в области культуры,кинематографии | D29: 17 | E29: =4106.47+1239.45 -> 5345.92 | F29: =716.1+182.11 -> 898.21
A30: 8 | B30: 1000 | C30: Социальная политика | D30: =D31 -> 2 | E30: =E31 -> 791.6 | F30: =F31 -> 141.85
A31: 8.1 | B31: 1004 | C31: Охрана семьи и детства | D31: 2 | E31: =609.7+181.9 -> 791.6 | F31: =113.18+28.67 -> 141.85
C32: Всего: | D32: =D30+D27+D21+D20+D19+D17+D11 -> 1033 | E32: =E30+E27+E21+E20+E19+E17+E11 -> 269846.82 | F32: =F30+F27+F21+F20+F17+F11+F19 -> 50060.38
C34: Руководитель _______________________ | D34: О.М.Горшкова
C35: (подпись) | D35: (расшифровка подписи)
C37: Зав.бюджетным отделом _______________________ | D37: Н.Г.Рунина
C38: (подпись) | D38: (расшифровка подписи)
C39: Исп.В.Н.Милованова 3-67-17

Sheet на 01.01.2016
C1: Приложение №_11
C3: ЗАТО г.Радужный от _____ №__
B5: Сведения о фактической численности муниципальных
B6: служащих, работников казенных и бюджетных учреждений и расходы
B7: на их денежное содержание за 2015год
E8: (тыс.рублей)
A9: №п/п | B9: Раздел(подраздел)БК | C9: Наименование разделов (подразделов) расходов | D9: Фактическая численность на 01.01.2016г. | E9: Годовой фонд оплаты труда с начислениями | F9: Исполнено за отчетный период
A10: 1 | B10: 2 | C10: 3 | D10: 4 | E10: 5 | F10: 6
A11: 1 | B11: 0100 | C11: Общегосударственные вопросы, всего, в том числе | D11: =D12+D13+D14+D15+D16 -> 59 | E11: =E12+E13+E14+E15+E16 -> 24991.84 | F11: =F12+F13+F14+F15+F16 -> 24991.84
A12: 1.1 | B12: 0102 | C12: Функционирование высшего должностного лица субъекта Российской Федерации и муниципального образования | D12: 1 | E12: 1056.95 | F12: 1056.95
A13: 1.2 | B13: 0103 | C13: Функционирование представительных органов местного самоуправления | D13: 3 | E13: 1360.81 | F13: 1360.81
A14: 1.3 | B14: 0104 | C14: Функционирование местных администраций | D14: 19 | E14: 9275.06 | F14: 9275.06
A15: 1.4 | B15: 0106 | C15: Обеспечение деятельности финансовых органов | D15: 10 | E15: 4265.87 | F15: 4265.87
A16: 1.5 | B16: 0113 | C16: Другие общегосударственные вопросы | D16: 26 | E16: 9033.15 | F16: 9033.15
A17: 2 | B17: 0300 | C17: Национальная безопасность и правоохранительная деятельность, всего, в том числе | D17: 5 | E17: =E18 -> 1832.33 | F17: =F18 -> 1832.33
A18: 2.1 | B18: 0309 | C18: Защита населения и территории от последствий чрезвычайных ситуаций природного и техногенного характера,гражданская оборона | D18: 5 | E18: 1832.33 | F18: 1832.33
A19: 3. | B19: 0400 | C19: Национальная экономика | D19: 45 | E19: 12660.92 | F19: 12641.79
A20: 4 | B20: 0500 | C20: Жилищно-коммунальное хозяйство | D20: 172 | E20: 35519.58 | F20: 35263.72
A21: 5 | B21: 0700 | C21: Образование,всего,в том числе | D21: =D22+D23+D25 -> 635 | E21: =E22+E23+E25 -> 168088.79 | F21: =F22+F23+F25 -> 168055.31
A22: 5.1 | B22: 0701 | C22: Дошкольное образование | D22: 256 | E22: 67148.89 | F22: 67148.89
A23: 5.2 | B23: 0702 | C23: Общее образование, всего, в том числе | D23: 353 | E23: 93070.93 | F23: 93063.72
A24: 5.2.1 | C24: Общеобразовательные учреждения | D24: 218 | E24: 63319.91 | F24: 63319.91
A25: 5.3. | B25: 0709 | C25: Другие вопросы в области образования, всего, в том числе | D25: 26 | E25: 7868.97 | F25: 7842.7
A26: 5.3.1 | C26: Централизованные бухгалтерии | D26: 15 | E26: 5282.01 | F26: 5282.01
A27: 6. | B27: 0800 | C27: Культура, кинематография | D27: =D28+D29 -> 98 | E27: =E28+E29 -> 20552.86 | F27: =F28+F29 -> 20543.33
A28: 6.1 | B28: 0801 | C28: Культура | D28: 81 | E28: 15270.85 | F28: 15261.32
A29: 6.2 | B29: 0804 | C29: Другие вопросы в области культуры,кинематографии | D29: 17 | E29: 5282.01 | F29: 5282.01
A30: 8 | B30: 1000 | C30: Социальная политика | D30: =D31 -> 2 | E30: =E31 -> 789.89 | F30: =F31 -> 789.89
A31: 8.1 | B31: 1004 | C31: Охрана семьи и детства | D31: 2 | E31: 789.89 | F31: 789.89
C32: Всего: | D32: =D30+D27+D21+D20+D19+D17+D11 -> 1016 | E32: =E30+E27+E21+E20+E19+E17+E11 -> 264436.21 | F32: =F30+F27+F21+F20+F17+F11+F19 -> 264118.21
C34: Руководитель _______________________ | D34: О.М.Горшкова
C35: (подпись) | D35: (расшифровка подписи)
C37: Зав.бюджетным отделом _______________________ | D37: Н.Г.Рунина
C38: (подпись) | D38: (расшифровка подписи)
C39: Исп.В.Н.Милованова 3-67-17
